{"text_format":"3","workbook":"xlsx","n_sheets":4,"sheets":["Nákupní seznam","Rozdělení rozpočtu","Seznam úkolů","Seznam sdílení"],"not_rendered":{"charts":2,"images":2,"defined_names":12},"read":"whole","date_system":"1900"}

{"sheet":"Nákupní seznam","index":0,"n_rows":25,"n_cols":8,"rows_kept":25,"merged":[[2,1,2,7],[3,1,3,2],[4,4,6,7]]}
[null,"Zpátky do školy","Plánovač"]
[]
[null,"Tady můžete sledovat postup svých nákupů oproti součtu částek kategorií rozpočtu zadaným v rozpisu rozpočtu."]
[null,"Souhrn rozpočtu",null,null,{"$f":"\"Průběh nákupu (\"&COUNTIFS(Kontrolní_seznam[Koupené], \">0\")&\" z \"&COUNTIFS(Kontrolní_seznam[Koupit], \">0\")&\")\"","v":"Průběh nákupu (1 z 6)"}]
[null,"Rozpočet",{"v":1500,"d":"1,500.00 Kč"},null,{"$f":"IFERROR(COUNTIFS(Kontrolní_seznam[Koupit],\">0\",Kontrolní_seznam[Koupené],\">0\")/SumaPoložkyKeKoupi,0)","v":{"v":0.16666666666666666,"d":"17%"}}]
[null,"Nákupní seznam celkem",{"$f":"IFERROR(SUM(KontrolníSeznamCelkem), \"\")","v":{"v":365,"d":"365.00 Kč"}}]
[null,"Zbývající hotovost",{"$f":"IFERROR(C5-C6, \"\")","v":{"v":1135,"d":"1,135.00 Kč"}}]
[null,"Nákupní seznam"]
[null,"Položka","Kategorie","Množ.","Koupit","Cena","Koupené","Celkové náklady"]
[null,"Matematika","Učebnice",1,1,{"v":55,"d":"55.00 Kč"},1,{"$f":"IFERROR(Kontrolní_seznam[Množ.]*Kontrolní_seznam[Cena], \"\")","v":{"v":55,"d":"55.00 Kč"}}]
[null,"Čeština","Učebnice",1,1,null,null,{"$f":"IFERROR(Kontrolní_seznam[Množ.]*Kontrolní_seznam[Cena], \"\")","v":0}]
[null,"Batoh","Pomůcky",1,null,{"v":30,"d":"30.00 Kč"},null,{"$f":"IFERROR(Kontrolní_seznam[Množ.]*Kontrolní_seznam[Cena], \"\")","v":{"v":30,"d":"30.00 Kč"}}]
[null,"Kalkulačka","Pomůcky",1,{"$nulls":3},{"$f":"IFERROR(Kontrolní_seznam[Množ.]*Kontrolní_seznam[Cena], \"\")","v":0}]
[null,"Zvýrazňovače","Pomůcky",3,{"$nulls":3},{"$f":"IFERROR(Kontrolní_seznam[Množ.]*Kontrolní_seznam[Cena], \"\")","v":0}]
[null,"Uniforma","Oblečení",2,1,{"v":100,"d":"100.00 Kč"},null,{"$f":"IFERROR(Kontrolní_seznam[Množ.]*Kontrolní_seznam[Cena], \"\")","v":{"v":200,"d":"200.00 Kč"}}]
[null,"Košile","Oblečení",4,{"$nulls":3},{"$f":"IFERROR(Kontrolní_seznam[Množ.]*Kontrolní_seznam[Cena], \"\")","v":0}]
[null,"Trička","Oblečení",5,{"$nulls":3},{"$f":"IFERROR(Kontrolní_seznam[Množ.]*Kontrolní_seznam[Cena], \"\")","v":0}]
[null,"Kalhoty","Oblečení",2,{"$nulls":3},{"$f":"IFERROR(Kontrolní_seznam[Množ.]*Kontrolní_seznam[Cena], \"\")","v":0}]
[null,"Tenisky","Oblečení",2,1,null,null,{"$f":"IFERROR(Kontrolní_seznam[Množ.]*Kontrolní_seznam[Cena], \"\")","v":0}]
[null,"Ponožky","Oblečení",10,{"$nulls":3},{"$f":"IFERROR(Kontrolní_seznam[Množ.]*Kontrolní_seznam[Cena], \"\")","v":0}]
[null,"Jarní bunda","Oblečení",1,1,{"v":80,"d":"80.00 Kč"},null,{"$f":"IFERROR(Kontrolní_seznam[Množ.]*Kontrolní_seznam[Cena], \"\")","v":{"v":80,"d":"80.00 Kč"}}]
[null,"Svetry","Oblečení",1,{"$nulls":3},{"$f":"IFERROR(Kontrolní_seznam[Množ.]*Kontrolní_seznam[Cena], \"\")","v":0}]
[null,"Mikiny","Oblečení",1,{"$nulls":3},{"$f":"IFERROR(Kontrolní_seznam[Množ.]*Kontrolní_seznam[Cena], \"\")","v":0}]
[null,"Spodní prádlo","Oblečení",10,{"$nulls":3},{"$f":"IFERROR(Kontrolní_seznam[Množ.]*Kontrolní_seznam[Cena], \"\")","v":0}]
[null,"Zimní bunda","Oblečení",1,1,null,null,{"$f":"IFERROR(Kontrolní_seznam[Množ.]*Kontrolní_seznam[Cena], \"\")","v":0}]

{"sheet":"Rozdělení rozpočtu","index":1,"n_rows":6,"n_cols":3,"rows_kept":6}
[null,"Rozdělení rozpočtu"]
[null,"Tady můžete přidat kategorie a sledovat částky rozpočtu pro nákupní seznam."]
[null,"Kategorie","Celkové náklady"]
[null,"Oblečení",{"$f":"IFERROR(SUMIFS(Kontrolní_seznam[Celkové náklady],Kontrolní_seznam[Kategorie],Kategorie[Kategorie]), \"\")","v":{"v":280,"d":"280.00 Kč"}}]
[null,"Pomůcky",{"$f":"IFERROR(SUMIFS(Kontrolní_seznam[Celkové náklady],Kontrolní_seznam[Kategorie],Kategorie[Kategorie]), \"\")","v":{"v":30,"d":"30.00 Kč"}}]
[null,"Učebnice",{"$f":"IFERROR(SUMIFS(Kontrolní_seznam[Celkové náklady],Kontrolní_seznam[Kategorie],Kategorie[Kategorie]), \"\")","v":{"v":55,"d":"55.00 Kč"}}]

{"sheet":"Seznam úkolů","index":2,"n_rows":22,"n_cols":3,"rows_kept":22}
[null,"Seznam úkolů"]
[null,"Tady můžete sledovat všechny věci, které musíte udělat před začátkem školního roku."]
[null,"Hotovo","Úkol"]
[null,"x","Vyplnit všechny registrační formuláře"]
[null,null,"V případě potřeby naplánovat školní fyzickou a vizuální prohlídku"]
[null,null,"Ověřit všechna požadovaná očkování"]
[null,null,"Požádat lékaře o předpis s pokyny k dávkování všech potřebných léků"]
[null,null,"Pročíst si pravidla oblékání do školy"]
[null,null,"Získat seznam školních pomůcek"]
[null,null,"Sejít se s učitelem"]
[null,null,"Zjistit učitelův upřednostňovaný způsob komunikace (telefon, e-mail, písemné vzkazy)"]
[null,null,"Prohlédnout si školu společně s dítětem"]
[null,null,"Pomoct dítěti naučit se nazpaměť váš telefon domů a do práce a vaši adresu"]
[null,null,"Zajistit dopravu, určit bezpečné místo pro scházení se a nacvičit si to"]
[null,null,"V případě chůze pěšky si s dítětem několikrát projít cestu do školy a zpět"]
[null,null,"V případě střídavých společných jízd auty seznámit dítě se všemi řidiči"]
[null,null,"V případě jízd autobusem zjistit časy a zastávky"]
[null,null,"Zařídit péči o dítě po škole nebo školní družinu"]
[null,null,"Naplánovat snídaně, dopolední svačiny, obědy a odpolední svačiny"]
[null,null,"Určit místo a čas pro plnění domácích úkolů"]
[null,null,"Začít chodit včas spát a vstávat aspoň dva týdny před začátkem školy"]
[null,null,"Připravit kalendář všech školních akcí a aktivit"]

{"sheet":"Seznam sdílení","index":3,"n_rows":4,"n_cols":5,"rows_kept":4}
[null,"Seznam sdílení",null,null,"Tento seznam můžete sdílet s dalšími lidmi, aby do něj mohli přispívat. Použijte tlačítko Sdílet v pravém horním rohu nebo stiskněte klávesu ALT a pak YU. Uložte si soubor na OneDrive a pošlete odkaz členům rodiny nebo přátelům."]
[null,"Jméno","E-mail","Sdílené?"]
[null,"Osoba 1","adresa@example.com","Ano"]
[null,"Osoba 2","adresa@example.com","Ne"]